{"text_format":"1","workbook":"xlsx","n_sheets":1,"sheets":["Лист1"],"not_rendered":{"charts":0,"images":0,"macros":0,"external_links":0,"defined_names":0,"comments":0,"pivot_tables":0},"unopened":[],"bounds":{"document_bytes":16777216,"sheet_cells":100000,"rows_first":2000,"rows_last":500,"rows_between":2000,"halvings":0,"cell_chars":16384,"cell_head_chars":4096},"cells_cut":0,"cells_raw":0,"read":"whole","date_system":"1900"}

{"sheet":"Лист1","index":0,"n_rows":20,"n_cols":2,"rows_kept":20,"cut":false,"hidden":false,"merged":[]}
["й",{"$f":"INDEX(A$1:A$4,(ROW(A1)-1)/3+1)","v":"й"}]
["цц",{"$f":"INDEX(A$1:A$4,(ROW(A2)-1)/3+1)","v":"й"}]
["уу","й"]
["кк","цц"]
[null,"цц"]
[null,"цц"]
[null,"уу"]
[null,"уу"]
[null,"уу"]
[null,"кк"]
[null,"кк"]
[null,"кк"]
[null,{"$error":"#REF!"}]
[null,{"$error":"#REF!"}]
[null,{"$error":"#REF!"}]
[null,{"$error":"#REF!"}]
[null,{"$error":"#REF!"}]
[null,{"$error":"#REF!"}]
[null,{"$error":"#REF!"}]
[null,{"$error":"#REF!"}]